fUST/lending_fUST_20240923
["ID","MTS","AMOUNT","RATE_DAILY","PERIOD"]
[338986925,1727101846255,-1650.96,0.00037808,30]
[338986926,1727101846266,-1650.96,0.00037808,30]
[338986928,1727101846275,-1650.96,0.00037808,30]
[338986929,1727101846285,-1650.96,0.00037808,30]
[338986930,1727101846295,-1650.96,0.00037808,30]
[338986931,1727101846304,-1650.96,0.00037808,30]
[338986932,1727101846314,-1650.96,0.00037808,30]
[338986933,1727101846323,-1650.96,0.00037808,30]
[338986934,1727101846332,-1650.96,0.00037808,30]
[338986935,1727101846341,-1650.96,0.00037808,30]
[338986936,1727101846350,-1650.96,0.00037808,30]
[338986937,1727101846360,-1650.96,0.00037808,30]
[338986938,1727101846369,-1650.96,0.00037808,30]
[338986939,1727101846378,-1650.96,0.00037808,30]
[338986940,1727101846388,-1650.96,0.00037808,30]
[338986941,1727101846397,-1650.96,0.00037808,30]
[338986942,1727101846406,-1650.96,0.00037808,30]
[338986943,1727101846415,-1650.96,0.00037808,30]
[338986944,1727101846425,-1650.96,0.00037808,30]
[338986945,1727101846434,-1650.96,0.00037808,30]
[338986946,1727101846443,-1650.96,0.00037808,30]
[338986947,1727101846453,-1651.11364568,0.00037808,30]
[338986948,1727101846462,-514.03,0.00037808,30]
[338986949,1727101846472,-638.36729924,0.00037808,30]
[338986950,1727101846482,-586.97539613,0.00037808,30]
[338986951,1727101846491,-500.0,0.00037808,30]
[338986952,1727101846501,-500.0,0.00037808,30]
[338986953,1727101846511,-500.0,0.00037808,30]
[338986954,1727101846520,-500.0,0.00037808,30]
[338986955,1727101846529,-500.0,0.00037808,30]
[338986956,1727101846539,-520.62,0.00037808,7]
[338986957,1727101846549,-501.79274757,0.00037808,30]
[338986958,1727101846558,-500.0,0.00037808,30]
[338986959,1727101846567,-525.31822053,0.00037808,30]
[338986960,1727101846577,-500.0,0.00037808,30]
[338986961,1727101846586,-500.0,0.00037808,30]
[338986962,1727101846596,-500.0,0.00037808,30]
[338986963,1727101846606,-500.0,0.00037808,30]
[338986964,1727101846615,-500.0,0.00037808,30]
[338986965,1727101846624,-500.0,0.00037808,30]
[338986966,1727101846634,-500.0,0.00037808,30]
[338986967,1727101846643,-500.0,0.00037808,30]
[338986968,1727101846652,-500.0,0.00037808,30]
[338986969,1727101846662,-500.0,0.00037808,30]
[338986970,1727101846671,-500.0,0.00037808,30]
[338986971,1727101846681,-500.0,0.00037808,30]
[338986972,1727101846690,-500.0,0.00037808,30]
[338986973,1727101846699,-501.9584585,0.00037808,30]
[338986974,1727101846709,-500.0,0.00037808,30]
[338986975,1727101846718,-623.79143747,0.00037808,30]
[338986976,1727101846727,-500.0,0.00037808,30]
[338986977,1727101846737,-500.0,0.00037808,30]
[338986978,1727101846746,-500.0,0.00037808,30]
[338986979,1727101846755,-500.0,0.00037808,30]
[338986980,1727101846764,-500.0,0.00037808,30]
[338986981,1727101846773,-500.0,0.00037808,30]
[338986982,1727101846782,-500.0,0.00037808,30]
[338986983,1727101846791,-500.0,0.00037808,30]
[338986984,1727101846800,-500.0,0.00037808,30]
[338986985,1727101846809,-500.0,0.00037808,30]
[338986986,1727101846819,-500.0,0.00037808,30]
[338986987,1727101846828,-500.0,0.00037808,30]
[338986988,1727101846837,-500.0,0.00037808,30]
[338986989,1727101846847,-500.0,0.00037808,30]
[338986990,1727101846857,-500.0,0.00037808,30]
[338986991,1727101846866,-500.0,0.00037808,30]
[338986992,1727101846876,-500.0,0.00037808,30]
[338986993,1727101846887,-500.0,0.00037808,30]
[338986994,1727101846952,-309.82594415,0.00037808,30]
[338986995,1727101846970,-500.0,0.00037808,30]
[338986996,1727101846980,-500.70076346,0.00037808,30]
[338986997,1727101846990,-500.0,0.00037808,30]
[338986998,1727101846999,-500.0,0.00037808,30]
[338986999,1727101847010,-500.0,0.00037808,30]
[338987000,1727101847028,-502.1398243,0.00037808,30]
[338987001,1727101847037,-151.0,0.00037808,14]
[338987002,1727101847046,-237.491608,0.00037808,14]
[338987003,1727101847056,-500.0,0.00037808,30]
[338987004,1727101847065,-500.0,0.00037808,30]
[338987005,1727101847074,-500.0,0.00037808,30]
[338987006,1727101847084,-500.0,0.00037808,30]
[338987007,1727101847093,-500.0,0.00037808,30]
[338987008,1727101847102,-500.0,0.00037808,30]
[338987009,1727101847112,-500.0,0.00037808,30]
[338987010,1727101847121,-500.0,0.00037808,30]
[338987011,1727101847130,-500.0,0.00037808,30]
[338987012,1727101847140,-500.0,0.00037808,30]
[338987013,1727101847149,-500.0,0.00037808,30]
[338987014,1727101847158,-500.0,0.00037808,30]
[338987015,1727101847167,-500.0,0.00037808,30]
[338987016,1727101847177,-500.0,0.00037808,30]
[338987017,1727101847186,-535.63207157,0.00037808,30]
[338987018,1727101847196,-500.0,0.00037808,30]
[338987019,1727101847205,-500.0,0.00037808,30]
[338987020,1727101847214,-500.0,0.00037808,30]
[338987021,1727101847224,-500.98530711,0.00037808,30]
[338987022,1727101847234,-500.0,0.00037808,30]
[338987023,1727101847243,-500.0,0.00037808,30]
[338987024,1727101847253,-500.0,0.00037808,30]
[338987025,1727101847266,-500.0,0.00037808,30]
[338987026,1727101847276,-500.0,0.00037808,30]
[338987027,1727101847286,-500.0,0.00037808,30]
[338987028,1727101847295,-500.0,0.00037808,30]
[338987029,1727101847304,-500.0,0.00037808,30]
[338987030,1727101847313,-500.0,0.00037808,30]
[338987031,1727101847324,-500.0,0.00037808,30]
[338987032,1727101847333,-500.0,0.00037808,30]
[338987033,1727101847342,-500.0,0.00037808,30]
[338987034,1727101847351,-151.0,0.00037808,14]
[338987035,1727101847360,-539.1737255,0.00037808,30]
[338987036,1727101847369,-429.99623737,0.00037808,30]
[338987037,1727101847379,-200.0,0.00037808,7]
[338987038,1727101847387,-500.0,0.00037808,30]
[338987039,1727101847396,-500.0,0.00037808,30]
[338987040,1727101847406,-500.0,0.00037808,30]
[338987041,1727101847415,-500.0,0.00037808,30]
[338987042,1727101847424,-508.08250094,0.00037808,30]
[338987043,1727101847433,-500.0,0.00037808,30]
[338987044,1727101847442,-301.86751848,0.00037808,30]
[338987045,1727101847532,-198.13248152,0.00037808,30]
[338987046,1727101847542,-503.42712235,0.00037808,30]
[338987047,1727101847551,-250.90639737,0.00037808,30]
[338987058,1727102439756,2609.94,0.00022,2]
[338987060,1727102580549,-150.49604997,0.00025,30]
[338987061,1727102580571,-451.273504,0.00027397,2]
[338987062,1727102580593,-728.316634,0.00027542,2]
[338987063,1727102580615,-728.316634,0.00028227,2]
[338987064,1727102580636,-728.316634,0.00028912,2]
[338987065,1727102580660,-150.54385109,0.00029111,2]
[338987066,1727102580682,-150.54385109,0.00029371,2]
[338987067,1727102580704,-150.54385109,0.0002963,2]
[338987068,1727102580726,-150.54385109,0.00029889,2]
[338987069,1727102580747,-481.85819928,0.0002989,2]
[338987070,1727102580769,-216.85,0.0002998,3]
[338987071,1727102580802,-180.7,0.0002998,3]
[338987072,1727102580830,-300.0,0.00029986,2]
[338987073,1727102580854,-500.0,0.00029987,2]
[338987074,1727102580876,-500.0,0.00029987,2]
[338987075,1727102580906,-500.0,0.00029987,2]
[338987076,1727102580929,-500.0,0.00029987,2]
[338987077,1727102580953,-500.0,0.00029987,2]
[338987078,1727102580978,-500.0,0.00029987,2]
[338987079,1727102581000,-500.0,0.00029987,2]
[338987080,1727102581024,-371.38030573,0.00029987,2]
[338987081,1727102581046,-546.94894232,0.00029987,2]
[338987082,1727102581068,-232.60436916,0.00029987,2]
[338987083,1727102581092,-614.08093267,0.00029987,2]
[338987084,1727102581115,-500.0,0.00029987,2]
[338987085,1727102581140,-500.0,0.00029987,2]
[338987086,1727102581164,-500.0,0.00029987,2]
[338987087,1727102581192,-500.0,0.00029987,2]
[338987088,1727102581217,-500.0,0.00029987,2]
[338987089,1727102581241,-500.0,0.00029987,2]
[338987090,1727102581262,-500.0,0.00029987,2]
[338987091,1727102581286,-500.0,0.00029987,2]
[338987092,1727102581308,-500.0,0.00029987,2]
[338987093,1727102581334,-500.0,0.00029987,2]
[338987094,1727102581356,-500.0,0.00029987,2]
[338987095,1727102581380,-500.0,0.00029987,2]
[338987096,1727102581494,-500.0,0.00029987,2]
[338987097,1727102581531,-500.0,0.00029987,2]
[338987098,1727102581554,-500.0,0.00029987,2]
[338987099,1727102581576,-500.0,0.00029987,2]
[338987100,1727102581601,-500.0,0.00029987,2]
[338987101,1727102581624,-500.0,0.00029987,2]
[338987102,1727102581651,-500.0,0.00029987,2]
[338987103,1727102581674,-500.0,0.00029987,2]
[338987104,1727102581697,-211.35288963,0.00029987,2]
[338987105,1727102581721,-500.0,0.00029987,2]
[338987106,1727102581745,-500.0,0.00029987,2]
[338987107,1727102581768,-500.0,0.00029987,2]
[338987108,1727102581791,-500.0,0.00029987,2]
[338987109,1727102581814,-500.0,0.00029987,2]
[338987110,1727102581836,-376.96832155,0.00029987,2]
[338987111,1727102581859,-500.0,0.00029987,2]
[338987112,1727102581882,-500.0,0.00029987,2]
[338987113,1727102581906,-500.0,0.00029987,2]
[338987114,1727102581929,-500.0,0.00029987,2]
[338987115,1727102581954,-500.0,0.00029987,2]
[338987116,1727102581985,-500.0,0.00029987,2]
[338987117,1727102582010,-500.0,0.00029987,2]
[338987118,1727102582033,-500.0,0.00029987,2]
[338987119,1727102582057,-500.0,0.00029987,2]
[338987120,1727102582081,-500.0,0.00029987,2]
[338987121,1727102582105,-500.0,0.00029987,2]
[338987122,1727102582128,-500.0,0.00029987,2]
[338987123,1727102582153,-500.0,0.00029987,2]
[338987124,1727102582179,-500.0,0.00029987,2]
[338987125,1727102582203,-500.0,0.00029987,2]
[338987126,1727102582227,-500.0,0.00029987,2]
[338987127,1727102582251,-500.0,0.00029987,2]
[338987128,1727102582276,-500.0,0.00029987,2]
[338987129,1727102582300,-500.0,0.00029987,2]
[338987130,1727102582324,-500.0,0.00029987,2]
[338987131,1727102582347,-500.0,0.00029987,2]
[338987132,1727102582371,-500.0,0.00029987,2]
[338987133,1727102582397,-500.0,0.00029987,2]
[338987134,1727102582420,-500.0,0.00029987,2]
[338987135,1727102582443,-500.0,0.00029987,2]
[338987136,1727102582466,-500.0,0.00029987,2]
[338987137,1727102582489,-500.0,0.00029987,2]
[338987138,1727102582513,-500.0,0.00029987,2]
[338987139,1727102582536,-500.0,0.00029987,2]
[338987140,1727102582559,-500.0,0.00029987,2]
[338987141,1727102582583,-500.0,0.00029987,2]
[338987142,1727102582608,-500.0,0.00029987,2]
[338987143,1727102582631,-500.0,0.00029987,2]
[338987144,1727102582658,-500.0,0.00029987,2]
[338987145,1727102582761,-500.0,0.00029987,2]
[338987146,1727102582786,-500.0,0.00029987,2]
[338987147,1727102582810,-500.0,0.00029987,2]
[338987148,1727102582834,-500.0,0.00029987,2]
[338987149,1727102582858,-500.0,0.00029987,2]
[338987150,1727102582882,-500.0,0.00029987,2]
[338987151,1727102582907,-500.0,0.00029987,2]
[338987152,1727102582931,-500.0,0.00029987,2]
[338987153,1727102582954,-500.0,0.00029987,2]
[338987154,1727102582977,-500.0,0.00029987,2]
[338987155,1727102583019,-500.0,0.00029987,2]
[338987156,1727102583047,-500.0,0.00029987,2]
[338987157,1727102583074,-500.0,0.00029987,2]
[338987158,1727102583100,-500.0,0.00029987,2]
[338987159,1727102583127,-500.0,0.00029987,2]
[338987160,1727102583155,-500.0,0.00029987,2]
[338987161,1727102583184,-500.0,0.00029987,2]
[338987162,1727102583211,-500.0,0.00029987,2]
[338987163,1727102583238,-500.0,0.00029987,2]
[338987164,1727102583265,-500.0,0.00029987,2]
[338987165,1727102583291,-500.0,0.00029987,2]
[338987166,1727102583317,-500.0,0.00029987,2]
[338987167,1727102583343,-500.0,0.00029987,2]
[338987168,1727102583370,-500.0,0.00029987,2]
[338987169,1727102583407,-500.0,0.00029987,2]
[338987170,1727102583432,-500.0,0.00029987,2]
[338987171,1727102583458,-500.0,0.00029987,2]
[338987172,1727102583484,-500.0,0.00029987,2]
[338987173,1727102583511,-487.69683216,0.00029987,2]
[338987174,1727102583537,-500.0,0.00029987,2]
[338987175,1727102583563,-500.0,0.00029987,2]
[338987176,1727102583588,-196.91735596,0.00029989,2]
[338987177,1727102583613,-222.75085981,0.00029989,2]
[338987178,1727102583637,-374.69083663,0.00029989,2]
[338987179,1727102583666,-500.0,0.00029989,2]
[338987180,1727102583690,-500.0,0.00029989,2]
[338987181,1727102583714,-500.0,0.00029989,2]
[338987182,1727102583737,-412.50407342,0.00029989,2]
[338987183,1727102583760,-605.0679584,0.00029989,2]
[338987184,1727102583784,-500.0,0.00029989,2]
[338987185,1727102583810,-500.0,0.00029989,2]
[338987186,1727102583835,-293.056447,0.00029989,2]
[338987187,1727102583860,-500.0,0.00029989,2]
[338987188,1727102583885,-500.0,0.00029989,2]
[338987189,1727102583913,-500.0,0.00029989,2]
[338987190,1727102583937,-198.24347537,0.0002999,24]
[338987191,1727102583961,-96044.3078541,0.0002999,4]
[338987192,1727102584076,-420833.12548648,0.0002999,4]
[338987193,1727102627202,298.42,0.00022,30]
[338987194,1727102774578,-954.689071,0.0002836,2]
[338987195,1727102774601,-2955.780642,0.00028565,2]
[338987196,1727102774623,-300.0,0.00029889,2]
[338987197,1727102774646,-1903.56272898,0.0002989,2]
[338987198,1727102774668,-201.38,0.0002998,3]
[338987199,1727102774689,-604.14,0.0002998,3]
[338987200,1727102774711,-247.64,0.0002998,3]
[338987201,1727102774733,-206.36,0.0002998,3]
[338987202,1727102774755,-638.75285139,0.00029989,2]
[338987203,1727102774776,-155.92560187,0.00029989,2]
[338987204,1727102774803,-500.0,0.00029989,2]
[338987205,1727102774825,-500.0,0.00029989,2]
[338987206,1727102774846,-262.28358564,0.00029989,2]
[338987207,1727102774868,-273.54757088,0.00029989,2]
[338987208,1727102774891,-500.0,0.00029989,2]
[338987209,1727102774913,-305.1395129,0.00029989,2]
[338987210,1727102774936,-500.0,0.00029989,2]
[338987211,1727102774958,-500.0,0.00029989,2]
[338987212,1727102774981,-634.59476552,0.00029989,2]
[338987213,1727102775006,-500.0,0.00029989,2]
[338987214,1727102775033,-500.0,0.00029989,2]
[338987215,1727102775057,-500.0,0.00029989,2]
[338987216,1727102775080,-500.0,0.00029989,2]
[338987217,1727102775104,-598.76968321,0.00029989,2]
[338987218,1727102775128,-500.0,0.00029989,2]
[338987219,1727102775151,-500.0,0.00029989,2]
[338987220,1727102775175,-500.0,0.00029989,2]
[338987221,1727102775200,-500.0,0.00029989,2]
[338987222,1727102775222,-188.77572294,0.00029989,2]
[338987223,1727102775248,-183.848,0.0002999,24]
[338987224,1727102775272,-41296.81026367,0.0002999,4]
[338987225,1727102825149,-347.590462,0.00027397,2]
[338987226,1727102825174,-250.0,0.00028554,2]
[338987227,1727102825197,-250.0,0.00028632,2]
[338987228,1727102825219,-250.0,0.00028711,2]
[338987229,1727102825239,-250.0,0.00028789,2]
[338987230,1727102825266,-250.0,0.00028867,2]
[338987231,1727102825288,-218.70157429,0.00028946,2]
[338987232,1727102842151,-31.29842571,0.00028946,2]
[338987233,1727102842173,-250.0,0.00029024,2]
[338987234,1727102842195,-250.0,0.00029102,2]
[338987235,1727102842217,-250.0,0.00029181,2]
[338987236,1727102842239,-72.1880112,0.00029259,2]
[338987237,1727102851122,-177.8119888,0.00029259,2]
[338987238,1727102851143,-3.33472754,0.00029337,2]
[338987239,1727102854147,-246.66527246,0.00029337,2]
[338987240,1727102854256,-250.0,0.00029415,2]
[338987241,1727102854278,-250.0,0.00029494,2]
[338987242,1727102854301,-41.24149915,0.00029572,2]
[338987243,1727102892484,-208.75850085,0.00029572,2]
[338987244,1727102892507,-250.0,0.0002965,2]
[338987245,1727102892531,-250.0,0.00029729,2]
[338987246,1727102892553,-250.0,0.00029807,2]
[338987247,1727102892577,-250.0,0.00029885,2]
[338987248,1727102892600,-250.0,0.00029964,2]
[338987249,1727102892625,-300.0,0.00029989,2]
[338987250,1727102892649,-510.97440925,0.00029989,2]
[338987251,1727102892673,-500.0,0.00029989,2]
[338987252,1727102892698,-500.0,0.00029989,2]
[338987253,1727102892722,-453.7980202,0.00029989,2]
[338987254,1727102892745,-402.76,0.0002999,3]
[338987255,1727102892768,-171.97,0.0002999,3]
[338987256,1727102892792,-67553.40530433,0.0002999,4]
[338987257,1727102892815,-18441.2188312,0.0002999,4]
[338987258,1727102892837,-581.04135427,0.00029999,2]
[338987259,1727102892859,-183.59850995,0.00029999,2]
[338987260,1727102892883,-500.0,0.00029999,2]
[338987261,1727102892905,-500.0,0.00029999,2]
[338987262,1727102892928,-173.62630567,0.00029999,2]
[338987263,1727102892950,-500.0,0.00029999,2]
[338987264,1727102892973,-500.0,0.00029999,2]
[338987265,1727102892996,-235.29152148,0.00029999,2]
[338987266,1727102893018,-110509.5572428,0.0003,30]
[338987268,1727102948102,-300.0,0.00028222,2]
[338987269,1727102948124,-143.72283448,0.00028223,2]
[338987270,1727102958140,-11520.73302863,0.00028223,2]
[338987271,1727102963164,-12414.47668721,0.00028223,2]
[338987272,1727102965128,-821.06744968,0.00028223,2]
[338987273,1727102965149,-150.5438511,0.0002989,2]
[338987274,1727102965174,-150.54385109,0.00029892,2]
[338987275,1727102965195,-150.54385109,0.00029893,2]
[338987276,1727102965215,-150.54385109,0.00029895,2]
[338987277,1727102965236,-150.54385109,0.00029897,2]
[338987278,1727102965258,-150.54385109,0.00029898,2]
[338987279,1727102965281,-150.54385109,0.000299,2]
[338987280,1727102965305,-508.2,0.0002999,3]
[338987281,1727102965327,-472.11,0.0002999,3]
[338987282,1727102965349,-393.43,0.0002999,3]
[338987283,1727102965373,-327.85,0.0002999,3]
[338987284,1727102965395,-159.68131898,0.00029999,2]
[338987285,1727102965422,-161.53311335,0.00029999,2]
[338987286,1727102965442,-8194.34232879,0.0003,30]
[338987287,1727102966095,-46509.2552406,0.0003,30]
[338987288,1727102974100,-1929.70171379,0.0003,30]
[338987373,1727103039928,206.20628,0.000273,120]
[338987388,1727103040354,-250.0,0.00028223,2]
[338987389,1727103040364,-300.0,0.00029999,2]
[338987390,1727103040373,-300.0,0.00029999,2]
[338987391,1727103040385,-31486.32882823,0.0003,30]
[338987392,1727103040396,-151.0,0.0003,120]
[338987393,1727103040405,-151.0,0.0003,120]
[338987394,1727103040415,-250.0,0.00030042,2]
[338987396,1727103040424,-156.8,0.00031263,6]
[338987397,1727103040434,-156.8,0.00032119,7]
[338987398,1727103040446,-420.0,0.00032332,2]
[338987399,1727103040459,-151.0,0.00032493,120]
[338987401,1727103040469,-500.0,0.00032876,30]
[338987403,1727103040479,-500.0,0.00032876,30]
[338987404,1727103040489,-156.8,0.00032975,7]
[338987406,1727103040498,-347.590462,0.00033165,2]
[338987415,1727103040508,-150.112233,0.000332,5]
[338987417,1727103040596,-177.97120469,0.00033298,2]
[338987419,1727103040606,-272.39,0.00033378,3]
[338987421,1727103040616,-327.0,0.00033378,3]
[338987423,1727103040626,-406.72894799,0.00033387,7]
[338987425,1727103040635,-553.00025525,0.00033387,7]
[338987427,1727103040644,-500.0,0.00033387,7]
[338987429,1727103040654,-326.48098832,0.00033387,7]
[338987431,1727103040663,-500.0,0.00033387,7]
[338987432,1727103040673,-79291.6841365,0.00033388,5]
[338987434,1727103040683,-36825.0265942,0.00033398,5]
[338987436,1727103040692,-150.112233,0.000336,7]
[338987438,1727103040703,-500.0,0.00033698,120]
[338987440,1727103040717,-151.295228,0.00033804,14]
[338987442,1727103040726,-151.0,0.00033804,14]
[338987443,1727103040736,-151.0,0.00033804,14]
[338987445,1727103040745,-226.701296,0.00033804,14]
[338987447,1727103040755,-151.0,0.00033804,14]
[338987449,1727103040765,-1411.87,0.00033819,120]
[338987451,1727103040774,-1411.87,0.00033819,120]
[338987453,1727103040784,-1411.87,0.00033819,120]
[338987455,1727103040794,-1411.87,0.00033819,120]
[338987457,1727103040803,-1411.87,0.00033819,120]
[338987458,1727103040812,-1411.87,0.00033819,120]
[338987460,1727103040822,-1411.87,0.00033819,120]
[338987462,1727103040831,-1411.87,0.00033819,120]
[338987464,1727103040840,-1411.87,0.00033819,120]
[338987466,1727103040849,-1411.87,0.00033819,120]
[338987468,1727103040860,-1411.87,0.00033819,120]
[338987470,1727103040869,-1411.87,0.00033819,120]
[338987471,1727103040878,-1411.87,0.00033819,120]
[338987473,1727103040887,-1411.87,0.00033819,120]
[338987475,1727103040897,-1411.87,0.00033819,120]
[338987477,1727103040906,-1411.87,0.00033819,120]
[338987479,1727103040915,-1411.87,0.00033819,120]
[338987481,1727103040926,-1411.87,0.00033819,120]
[338987483,1727103040935,-1411.87,0.00033819,120]
[338987485,1727103040945,-1411.87,0.00033819,120]
[338987486,1727103040954,-1411.87,0.00033819,120]
[338987488,1727103040967,-1411.87,0.00033819,120]
[338987490,1727103040977,-1411.87,0.00033819,120]
[338987492,1727103040986,-1412.09698909,0.00033819,120]
[338987494,1727103040996,-1000.0,0.00033819,120]
[338987496,1727103041006,-156.8,0.00033832,15]
[338987498,1727103041016,-151.0,0.00034,120]
[338987500,1727103041025,-150.112233,0.000341,10]
[338987501,1727103041035,-150.112233,0.000346,8]
[338987503,1727103041044,-1000.0,0.00034633,2]
[338987505,1727103041054,-800.0,0.00034656,10]
[338987507,1727103041063,-156.8,0.00034688,15]
[338987509,1727103041073,-161.79766387,0.00034713,30]
[338987511,1727103041083,-79291.6841365,0.00034713,5]
[338987513,1727103041092,-36825.0265942,0.00034723,5]
[338987515,1727103041102,-79291.6841365,0.00034723,5]
[338987517,1727103041112,-50798.44507715,0.00034733,5]
[338987519,1727103041122,-500.0,0.0003474,5]
[338987521,1727103041131,-1000.0,0.000348,3]
[338987522,1727103041140,-150.0,0.00034804,2]
[338987524,1727103041151,-587.0,0.00034847,2]
[338987526,1727103041160,-151.0,0.00034986,120]
[338987528,1727103041170,-150.112233,0.00035,6]
[338987530,1727103041180,-2014.32,0.000354,14]
[338987532,1727103041190,-4685.56,0.000354,14]
[338987534,1727103041199,-1078.31,0.000354,14]
[338987536,1727103041212,-800.0,0.00035478,10]
[338987538,1727103041221,-150.112233,0.000355,8]
[338987540,1727103041231,-156.8,0.00035544,15]
[338987541,1727103041240,-76427.21986994,0.00035597,5]
[338987551,1727103041329,-2864.46426656,0.00035597,5]
[338987554,1727103041351,-284.74,0.000356,14]
[338987556,1727103041361,-36825.0265942,0.00035606,5]
[338987558,1727103041371,-500.0,0.00035616,120]
[338987560,1727103041381,-500.0,0.00035616,7]
[338987562,1727103041391,-500.0,0.00035616,7]
[338987564,1727103041401,-500.0,0.00035616,7]
[338987566,1727103041411,-500.0,0.00035616,7]
[338987568,1727103041420,-500.0,0.00035616,7]
[338987569,1727103041431,-500.0,0.00035616,7]
[338987571,1727103041441,-500.0,0.00035616,7]
[338987573,1727103041451,-500.0,0.00035616,7]
[338987575,1727103041464,-500.0,0.00035616,7]
[338987577,1727103041474,-500.0,0.00035616,7]
[338987579,1727103041484,-500.0,0.00035616,7]
[338987581,1727103041494,-500.0,0.00035616,7]
[338987583,1727103041504,-500.0,0.00035616,7]
[338987585,1727103041514,-500.0,0.00035616,7]
[338987587,1727103041524,-500.0,0.00035616,7]
[338987589,1727103041534,-500.0,0.00035616,7]
[338987599,1727103041629,-500.0,0.00035616,7]
[338987601,1727103041639,-500.0,0.00035616,7]
[338987603,1727103041649,-500.0,0.00035616,7]
[338987605,1727103041658,-500.0,0.00035616,7]
[338987606,1727103041668,-500.0,0.00035616,7]
[338987608,1727103041677,-500.0,0.00035616,7]
[338987610,1727103041687,-200.3016297,0.00035616,7]
[338987612,1727103041697,-500.0,0.00035616,7]
[338987614,1727103041708,-500.0,0.00035616,7]
[338987616,1727103041718,-500.0,0.00035616,7]
[338987618,1727103041727,-500.0,0.00035616,7]
[338987620,1727103041735,-500.0,0.00035616,7]
[338987621,1727103041745,-500.0,0.00035616,7]
[338987623,1727103041754,-500.0,0.00035616,7]
[338987625,1727103041763,-500.0,0.00035616,7]
[338987627,1727103041773,-500.0,0.00035616,7]
[338987629,1727103041782,-499.99999999,0.00035616,7]
[338987631,1727103041792,-400.0,0.00035616,2]
[338987633,1727103041801,-187.325925,0.00035616,120]
[338987635,1727103041811,-262.4,0.000357,30]
[338987636,1727103041820,-3113.27289669,0.00035953,60]
[338987638,1727103041830,-3093.09095202,0.00036,30]
[338987640,1727103041839,-150.112233,0.00036,8]
[338987642,1727103041849,-800.0,0.000363,10]
[338987644,1727103041858,-150.0,0.000364,2]
[338987646,1727103041868,-156.8,0.000364,15]
[338987647,1727103041878,-150.112233,0.000364,6]
[338987648,1727103041887,-153.0,0.00036659,120]
[338987649,1727103041897,-153.0,0.00036665,120]
[338987650,1727103041906,-153.0,0.00036671,120]
[338987651,1727103041915,-199.686968,0.00036897,2]
[338987652,1727103041925,-150.112233,0.000369,10]
[338987653,1727103041934,-800.0,0.00037122,10]
[338987654,1727103041944,-153.0,0.00037205,2]
[338987655,1727103041953,-153.0,0.00037205,2]
[338987656,1727103041966,-153.0,0.00037205,2]
[338987657,1727103041975,-156.8,0.00037257,15]
[338987658,1727103041984,-150.112233,0.000373,5]
[338987659,1727103041993,-284.74,0.000374,14]
[338987660,1727103042003,-151.0,0.00037479,120]
[338987661,1727103042012,-151.0,0.00037538,14]
[338987662,1727103042021,-262.912528,0.00037538,14]
[338987663,1727103042032,-151.0,0.00037538,14]
[338987664,1727103042041,-151.0,0.00037538,14]
[338987665,1727103042050,-586.66743907,0.00037547,2]